fUST/lending_fUST_20241220
["ID","MTS","AMOUNT","RATE_DAILY","PERIOD"]
[346067713,1734690436236,-500.9610319,0.00021917,6]
[346067715,1734690436267,-1398.36,0.00021917,6]
[346067717,1734690436291,-500.0,0.00021917,6]
[346067719,1734690436314,-500.0,0.00021917,6]
[346067720,1734690436338,-1721.74,0.00021917,6]
[346067722,1734690436361,-1000.0,0.00021917,6]
[346067724,1734690436384,-500.0,0.00021917,6]
[346067726,1734690436408,-500.0,0.00021917,6]
[346067728,1734690436431,-500.0,0.00021917,6]
[346067730,1734690436454,-500.0,0.00021917,6]
[346067732,1734690436477,-500.0,0.00021917,6]
[346067734,1734690436505,-939.3,0.00021917,6]
[346067736,1734690436528,-500.0,0.00021917,6]
[346067738,1734690436552,-500.0,0.00021917,6]
[346067740,1734690436576,-151.0,0.00021917,2]
[346067742,1734690436599,-151.0,0.00021917,2]
[346067744,1734690436623,-1669.94,0.00021917,6]
[346067746,1734690436646,-479.20177884,0.00021917,6]
[346067748,1734690436669,-520.15,0.00021917,6]
[346067750,1734690436693,-500.0,0.00021917,6]
[346067752,1734690436717,-1500.6,0.00021917,6]
[346067753,1734690436742,-701.14,0.00021917,6]
[346067754,1734690436766,-500.0,0.00021917,6]
[346067755,1734690436790,-151.0,0.00021917,2]
[346067756,1734690436813,-501.35838959,0.00021917,6]
[346067757,1734690436836,-151.0,0.00021917,2]
[346067758,1734690436858,-500.0,0.00021917,6]
[346067759,1734690436880,-151.0,0.00021917,2]
[346067760,1734690436903,-151.0,0.00021917,2]
[346067761,1734690436925,-500.0,0.00021917,6]
[346067762,1734690436951,-522.05,0.00021917,6]
[346067763,1734690436973,-500.0,0.00021917,6]
[346067764,1734690436998,-500.0,0.00021917,6]
[346067765,1734690437020,-500.0,0.00021917,6]
[346067766,1734690437043,-500.0,0.00021917,6]
[346067767,1734690437066,-500.0,0.00021917,6]
[346067768,1734690437089,-510.63,0.00021917,6]
[346067769,1734690437110,-500.0,0.00021917,6]
[346067770,1734690437131,-500.0,0.00021917,6]
[346067771,1734690437152,-500.0,0.00021917,6]
[346067772,1734690437174,-500.0,0.00021917,6]
[346067773,1734690437195,-500.0,0.00021917,6]
[346067774,1734690437215,-500.0,0.00021917,2]
[346067775,1734690437237,-500.86509649,0.00021917,6]
[346067776,1734690437263,-500.0,0.00021917,6]
[346067777,1734690437285,-500.0,0.00021917,6]
[346067778,1734690437306,-504.37884294,0.00021917,6]
[346067779,1734690437328,-500.0,0.00021917,6]
[346067780,1734690437350,-3468.48,0.00021917,6]
[346067781,1734690437371,-500.0,0.00021917,6]
[346067782,1734690437392,-500.0,0.00021917,6]
[346067783,1734690437417,-629.70312173,0.00021917,6]
[346067784,1734690437439,-151.0,0.00021917,2]
[346067785,1734690437462,-151.0,0.00021917,2]
[346067786,1734690437483,-793.21,0.00021917,6]
[346067787,1734690437509,-500.0,0.00021917,6]
[346067788,1734690437533,-543.14,0.00021917,6]
[346067789,1734690437560,-525.1,0.00021917,6]
[346067790,1734690437584,-500.0,0.00021917,6]
[346067791,1734690437607,-1811.28,0.00021917,6]
[346067792,1734690437630,-500.0,0.00021917,6]
[346067793,1734690437653,-500.0,0.00021917,6]
[346067794,1734690437676,-730.32,0.00021917,6]
[346067795,1734690437698,-706.04,0.00021917,6]
[346067796,1734690437719,-500.0,0.00021917,6]
[346067797,1734690437745,-500.0,0.00021917,6]
[346067798,1734690437767,-500.0,0.00021917,6]
[346067799,1734690437789,-500.0,0.00021917,6]
[346067800,1734690437812,-884.99,0.00021917,6]
[346067801,1734690437835,-500.0,0.00021917,6]
[346067802,1734690437858,-500.0,0.00021917,6]
[346067803,1734690437880,-459.90024593,0.00021917,6]
[346067804,1734690437901,-502.79016131,0.00021917,6]
[346067805,1734690437923,-500.0,0.00021917,6]
[346067806,1734690437945,-500.0,0.00021917,6]
[346067807,1734690437966,-794.77,0.00021917,6]
[346067808,1734690437988,-500.0,0.00021917,6]
[346067809,1734690438013,-763.98,0.00021917,6]
[346067810,1734690438035,-500.0,0.00021917,6]
[346067811,1734690438058,-151.0,0.00021917,2]
[346067812,1734690438085,-151.0,0.00021917,2]
[346067813,1734690438108,-489.69844677,0.00021917,6]
[346067814,1734690438130,-150.0,0.00021917,6]
[346067815,1734690438153,-848.52,0.00021917,6]
[346067816,1734690438175,-151.0,0.00021917,2]
[346067817,1734690438197,-500.0,0.00021917,6]
[346067818,1734690438219,-151.0,0.00021917,2]
[346067819,1734690438484,-502.36035714,0.00021917,6]
[346067820,1734690438512,-151.0,0.00021917,2]
[346067821,1734690438536,-500.0,0.00021917,6]
[346067822,1734690438563,-210.197666,0.00021917,2]
[346067823,1734690438585,-750.97,0.00021917,6]
[346067824,1734690438609,-3282.94,0.00021917,6]
[346067825,1734690438633,-500.0,0.00021917,6]
[346067826,1734690438657,-500.0,0.00021917,6]
[346067827,1734690438680,-500.0,0.00021917,6]
[346067828,1734690438702,-500.0,0.00021917,6]
[346067829,1734690438725,-500.0,0.00021917,6]
[346067830,1734690438751,-552.2,0.00021917,6]
[346067831,1734690438775,-500.0,0.00021917,6]
[346067832,1734690438799,-501.31023528,0.00021917,6]
[346067833,1734690438824,-500.0,0.00021917,6]
[346067834,1734690438850,-271.415491,0.00021917,2]
[346067835,1734690438885,-505.34200438,0.00021917,6]
[346067836,1734690438910,-271.415491,0.00021917,2]
[346067837,1734690438935,-500.0,0.00021917,6]
[346067838,1734690438960,-500.0,0.00021917,6]
[346067839,1734690438986,-500.0,0.00021917,6]
[346067840,1734690439018,-271.415491,0.00021917,2]
[346067841,1734690439042,-500.0,0.00021917,6]
[346067842,1734690439071,-271.415491,0.00021917,2]
[346067843,1734690439097,-500.0,0.00021917,6]
[346067844,1734690439120,-500.0,0.00021917,2]
[346067845,1734690439144,-500.0,0.00021917,6]
[346067846,1734690439168,-1528.22,0.00021917,6]
[346067847,1734690439191,-500.0,0.00021917,6]
[346067848,1734690439213,-500.0,0.00021917,2]
[346067849,1734690439236,-500.0,0.00021917,6]
[346067850,1734690439265,-500.0,0.00021917,6]
[346067851,1734690439289,-500.0,0.00021917,2]
[346067852,1734690439313,-151.0,0.00021917,2]
[346067853,1734690439337,-151.0,0.00021917,2]
[346067854,1734690439360,-500.0,0.00021917,6]
[346067855,1734690439384,-500.0,0.00021917,6]
[346067856,1734690439407,-459.143886,0.00021917,2]
[346067857,1734690439430,-500.0,0.00021917,6]
[346067858,1734690439453,-459.143886,0.00021917,2]
[346067859,1734690439476,-1069.68,0.00021917,6]
[346067860,1734690439504,-500.0,0.00021917,6]
[346067861,1734690439527,-459.143886,0.00021917,2]
[346067862,1734690439551,-459.143886,0.00021917,2]
[346067863,1734690439576,-500.0,0.00021917,2]
[346067864,1734690439600,-500.0,0.00021917,6]
[346067865,1734690439624,-500.0,0.00021917,6]
[346067866,1734690439650,-500.0,0.00021917,6]
[346067867,1734690439674,-500.0,0.00021917,6]
[346067868,1734690439697,-150.06,0.00021917,6]
[346067869,1734690439721,-933.97,0.00021917,6]
[346067870,1734690439751,-500.0,0.00021917,6]
[346067871,1734690439775,-151.0,0.00021917,2]
[346067872,1734690439800,-150.06,0.00021917,6]
[346067873,1734690439824,-151.0,0.00021917,2]
[346067874,1734690439851,-500.0,0.00021917,6]
[346067875,1734690439876,-584.99,0.00021917,6]
[346067876,1734690439900,-500.0,0.00021917,6]
[346067877,1734690439926,-1193.38,0.00021917,6]
[346067878,1734690439952,-500.0,0.00021917,6]
[346067879,1734690439975,-501.54249789,0.00021917,6]
[346067880,1734690440003,-500.0,0.00021917,6]
[346067881,1734690440026,-500.0,0.00021917,6]
[346067882,1734690440050,-500.0,0.00021917,6]
[346067883,1734690440074,-74.45753053,0.00021917,6]
[346067884,1734690443100,-425.54246947,0.00021917,6]
[346067885,1734690443122,-819.33,0.00021917,6]
[346067886,1734690443145,-500.0,0.00021917,6]
[346067887,1734690443166,-500.0,0.00021917,6]
[346067888,1734690443187,-151.0,0.00021917,2]
[346067889,1734690443209,-151.0,0.00021917,2]
[346067890,1734690443231,-686.22,0.00021917,6]
[346067891,1734690443263,-500.0,0.00021917,6]
[346067892,1734690443289,-577.14,0.00021917,6]
[346067893,1734690443313,-949.91,0.00021917,6]
[346067894,1734690443335,-500.0,0.00021917,6]
[346067895,1734690443363,-500.0,0.00021917,6]
[346067896,1734690443385,-500.0,0.00021917,6]
[346067897,1734690443408,-151.0,0.00021917,2]
[346067898,1734690443431,-249.181222,0.00021917,2]
[346067899,1734690443452,-500.0,0.00021917,6]
[346067900,1734690443475,-525.26882002,0.00021917,6]
[346067901,1734690443508,-482.970458,0.00021917,2]
[346067902,1734690443531,-482.970458,0.00021917,2]
[346067903,1734690443554,-500.0,0.00021917,6]
[346067904,1734690443578,-482.970458,0.00021917,2]
[346067905,1734690443604,-482.970458,0.00021917,2]
[346067906,1734690443628,-500.0,0.00021917,6]
[346067907,1734690443650,-500.68170812,0.00021917,6]
[346067908,1734690443677,-549.35,0.00021917,6]
[346067909,1734690443698,-500.0,0.00021917,6]
[346067910,1734690443725,-501.04752599,0.00021917,6]
[346067911,1734690443752,-500.0,0.00021917,6]
[346067912,1734690443774,-500.0,0.00021917,6]
[346067913,1734690443799,-1677.8,0.00021917,6]
[346067914,1734690443823,-500.0,0.00021917,6]
[346067915,1734690443845,-500.0,0.00021917,6]
[346067916,1734690443868,-500.0,0.00021917,6]
[346067917,1734690443891,-504.28970838,0.00021917,6]
[346067918,1734690443914,-500.0,0.00021917,6]
[346067919,1734690443935,-500.0,0.00021917,6]
[346067920,1734690443956,-500.0,0.00021917,6]
[346067921,1734690443978,-516.70232703,0.00021917,6]
[346067922,1734690444004,-650.85,0.00021917,6]
[346067923,1734690444027,-501.56487893,0.00021917,6]
[346067924,1734690444048,-500.0,0.00021917,6]
[346067925,1734690444069,-500.0,0.00021917,6]
[346067926,1734690444090,-501.06909251,0.00021917,6]
[346067927,1734690444111,-500.0,0.00021917,6]
[346067928,1734690444132,-501.07476617,0.00021917,6]
[346067929,1734690444153,-500.0,0.00021917,6]
[346067930,1734690444174,-508.4720901,0.00021917,6]
[346067931,1734690444195,-500.0,0.00021917,6]
[346067932,1734690444419,-500.0,0.00021917,6]
[346067933,1734690444440,-500.0,0.00021917,6]
[346067934,1734690444461,-1194.63,0.00021917,6]
[346067935,1734690444483,-500.0,0.00021917,6]
[346067936,1734690444507,-500.0,0.00021917,6]
[346067937,1734690444528,-546.12,0.00021917,6]
[346067938,1734690444549,-500.0,0.00021917,6]
[346067939,1734690444571,-500.0,0.00021917,6]
[346067940,1734690444595,-500.0,0.00021917,6]
[346067941,1734690444617,-809.58,0.00021917,6]
[346067942,1734690444641,-500.0,0.00021917,6]
[346067943,1734690444664,-500.0,0.00021917,6]
[346067944,1734690444686,-500.0,0.00021917,6]
[346067945,1734690444708,-570.89,0.00021917,6]
[346067946,1734690444730,-500.0,0.00021917,6]
[346067947,1734690444757,-500.0,0.00021917,6]
[346067948,1734690444779,-501.43430837,0.00021917,6]
[346067949,1734690444804,-500.0,0.00021917,6]
[346067950,1734690444830,-500.0,0.00021917,6]
[346067951,1734690444852,-500.0,0.00021917,6]
[346067952,1734690444875,-500.0,0.00021917,6]
[346067953,1734690444897,-500.0,0.00021917,6]
[346067954,1734690444919,-500.0,0.00021917,6]
[346067955,1734690444941,-500.0,0.00021917,6]
[346067956,1734690444964,-555.06,0.00021917,6]
[346067957,1734690444987,-500.0,0.00021917,6]
[346067958,1734690445015,-500.0,0.00021917,6]
[346067959,1734690445038,-150.06,0.00021917,2]
[346067960,1734690445060,-1726.74,0.00021917,6]
[346067961,1734690445082,-500.0,0.00021917,6]
[346067962,1734690445104,-165.49123258,0.00021917,6]
[346067963,1734690445127,-502.76434455,0.00021917,6]
[346067964,1734690445149,-299.98337749,0.00021917,6]
[346067965,1734690445173,-501.11788203,0.00021917,6]
[346067966,1734690445197,-500.0,0.00021917,6]
[346067967,1734690445220,-150.06,0.00021917,6]
[346067968,1734690445243,-500.0,0.00021917,6]
[346067969,1734690445271,-500.0,0.00021917,6]
[346067970,1734690445293,-696.43,0.00021917,6]
[346067971,1734690445316,-500.0,0.00021917,6]
[346067972,1734690445338,-1131.39,0.00021917,6]
[346067973,1734690445360,-886.46,0.00021917,6]
[346067974,1734690445385,-500.0,0.00021917,6]
[346067975,1734690445407,-500.0,0.00021917,6]
[346067976,1734690445430,-502.07613592,0.00021917,6]
[346067977,1734690445453,-640.19776142,0.00021917,6]
[346067978,1734690445475,-501.71569532,0.00021917,6]
[346067979,1734690445503,-689.76,0.00021917,6]
[346067980,1734690445524,-502.49950893,0.00021917,6]
[346067981,1734690445548,-500.0,0.00021917,6]
[346067982,1734690445571,-1024.46,0.00021917,6]
[346067983,1734690445597,-503.09049719,0.00021917,6]
[346067984,1734690445619,-505.87702639,0.00021917,6]
[346067985,1734690445643,-500.0,0.00021917,6]
[346067986,1734690445668,-296.42,0.00021917,6]
[346067987,1734690445689,-500.0,0.00021917,6]
[346067988,1734690445712,-610.18,0.00021917,6]
[346067989,1734690445735,-500.0,0.00021917,6]
[346067990,1734690445764,-2277.71,0.00021917,6]
[346067991,1734690445787,-504.12544609,0.00021917,6]
[346067992,1734690445809,-500.0,0.00021917,6]
[346067993,1734690445831,-500.0,0.00021917,6]
[346067994,1734690445854,-500.86237059,0.00021917,6]
[346067995,1734690445876,-500.0,0.00021917,6]
[346067996,1734690445898,-564.60470062,0.00021917,6]
[346067997,1734690445921,-274.790238,0.00021917,2]
[346067998,1734690445944,-274.790238,0.00021917,2]
[346067999,1734690445965,-500.0,0.00021917,6]
[346068000,1734690445988,-500.0,0.00021917,6]
[346068001,1734690446013,-500.0,0.00021917,6]
[346068002,1734690446035,-274.790238,0.00021917,2]
[346068003,1734690446057,-274.790238,0.00021917,2]
[346068004,1734690446081,-561.7,0.00021917,6]
[346068005,1734690446103,-501.14284593,0.00021917,6]
[346068006,1734690446127,-165.073798,0.00021917,2]
[346068007,1734690446151,-165.073798,0.00021917,2]
[346068008,1734690446175,-950.5,0.00021917,6]
[346068009,1734690446197,-165.073798,0.00021917,2]
[346068010,1734690446219,-165.073798,0.00021917,2]
[346068011,1734690446241,-3536.79,0.00021917,6]
[346068012,1734690446268,-795.5,0.00021917,6]
[346068013,1734690446290,-500.0,0.00021917,6]
[346068014,1734690446312,-545.078597,0.00021917,2]
[346068015,1734690446334,-545.078597,0.00021917,2]
[346068016,1734690446357,-516.41,0.00021917,6]
[346068017,1734690446379,-151.0,0.00021917,2]
[346068018,1734690446401,-151.0,0.00021917,2]
[346068019,1734690446424,-27044.32,0.00021917,6]
[346068020,1734690446446,-12921.79,0.00021917,6]
[346068021,1734690446470,-500.0,0.00021917,6]
[346068022,1734690446492,-545.078597,0.00021917,2]
[346068023,1734690446519,-198.383115,0.00021917,2]
[346068024,1734690446541,-545.078597,0.00021917,2]
[346068025,1734690446564,-198.383115,0.00021917,2]
[346068026,1734690446587,-500.0,0.00021917,2]
[346068027,1734690446608,-151.0,0.00021917,2]
[346068028,1734690446629,-502.12921249,0.00021917,6]
[346068029,1734690446651,-151.0,0.00021917,2]
[346068030,1734690446675,-500.0,0.00021917,6]
[346068031,1734690446697,-500.8940551,0.00021917,6]
[346068032,1734690446720,-630.81,0.00021917,6]
[346068033,1734690446742,-630.81,0.00021917,6]
[346068034,1734690446769,-630.81,0.00021917,6]
[346068035,1734690446790,-1008.05,0.00021917,6]
[346068036,1734690446811,-630.81,0.00021917,6]
[346068037,1734690446833,-501.04802181,0.00021917,6]
[346068038,1734690446854,-500.0,0.00021917,6]
[346068039,1734690446877,-630.81,0.00021917,6]
[346068040,1734690446900,-630.81,0.00021917,6]
[346068041,1734690446923,-198.383115,0.00021917,2]
[346068042,1734690446944,-630.81,0.00021917,6]
[346068043,1734690446966,-500.85563353,0.00021917,6]
[346068044,1734690446987,-198.383115,0.00021917,2]
[346068045,1734690447015,-630.81,0.00021917,6]
[346068046,1734690447037,-630.81,0.00021917,6]
[346068047,1734690447058,-151.0,0.00021917,2]
[346068048,1734690447081,-630.81,0.00021917,6]
[346068049,1734690447107,-563.59389493,0.00021917,6]
[346068050,1734690451123,-194.014444,0.00020956,2]
[346068051,1734690451144,-151.0,0.00021917,2]
[346068052,1734690451166,-502.96490849,0.00021917,6]
[346068053,1734690451188,-4997.11,0.00021917,2]
[346068054,1734690451209,-4997.11,0.00021917,2]
[346068055,1734690451232,-4997.11,0.00021917,2]
[346068056,1734690451254,-4997.11,0.00021917,2]
[346068057,1734690451274,-4997.11,0.00021917,2]
[346068058,1734690451295,-4997.11,0.00021917,2]
[346068059,1734690451316,-4997.11,0.00021917,2]
[346068060,1734690451337,-4997.11,0.00021917,2]
[346068061,1734690451357,-4997.11,0.00021917,2]
[346068062,1734690451379,-4997.11,0.00021917,2]
[346068063,1734690451400,-982.52,0.00021917,6]
[346068064,1734690451422,-4997.11,0.00021917,2]
[346068065,1734690451443,-4997.11,0.00021917,2]
[346068066,1734690451465,-4997.11,0.00021917,2]
[346068067,1734690451486,-4997.11,0.00021917,2]
[346068068,1734690451508,-14121.13,0.00021917,6]
[346068069,1734690451529,-4997.11,0.00021917,2]
[346068070,1734690451551,-503.85,0.00021917,6]
[346068071,1734690451571,-4997.11,0.00021917,2]
[346068072,1734690451593,-4997.11,0.00021917,2]
[346068073,1734690451615,-4997.11,0.00021917,2]
[346068074,1734690451636,-4997.11,0.00021917,2]
[346068075,1734690451658,-4997.11,0.00021917,2]
[346068076,1734690451679,-4997.11,0.00021917,2]
[346068077,1734690451701,-501.86051589,0.00021917,6]
[346068078,1734690451722,-4997.11,0.00021917,2]
[346068079,1734690451744,-500.0,0.00021917,6]
[346068080,1734690451766,-4997.11,0.00021917,2]
[346068081,1734690451788,-4997.13527145,0.00021917,2]
[346068082,1734690451809,-501.04541464,0.00021917,6]
[346068083,1734690451831,-500.0,0.00021917,6]
[346068084,1734690451855,-4115.48,0.00021917,6]
[346068085,1734690451877,-500.0,0.00021917,6]
[346068086,1734690451899,-1358.71,0.00021917,6]
[346068087,1734690451921,-500.0,0.00021917,6]
[346068088,1734690451943,-1003.70095196,0.00021917,6]
[346068089,1734690451964,-157.677432,0.00021917,2]
[346068090,1734690451985,-500.0,0.00021917,6]
[346068091,1734690452007,-500.0,0.00021917,6]
[346068092,1734690452034,-618.64001769,0.00021917,6]
[346068093,1734690452058,-1082.11,0.00021917,6]
[346068094,1734690452080,-500.0,0.00021917,6]
[346068095,1734690452102,-607.64,0.00021917,6]
[346068096,1734690452125,-500.0,0.00021917,6]
[346068097,1734690452145,-500.0,0.00021917,6]
[346068098,1734690452167,-810.56,0.00021917,6]
[346068099,1734690452188,-1780.08,0.00021917,6]
[346068100,1734690452209,-2819.06,0.00021917,6]
[346068101,1734690452231,-1121.1,0.00021917,6]
[346068102,1734690452251,-500.0,0.00021917,6]
[346068103,1734690452273,-756.18,0.00021917,6]
[346068104,1734690452294,-503.08113393,0.00021917,6]
[346068105,1734690452315,-394.301777,0.00021917,2]
[346068106,1734690452336,-394.301777,0.00021917,2]
[346068107,1734690452357,-500.0,0.00021917,6]
[346068108,1734690452378,-500.0,0.00021917,6]
[346068109,1734690452402,-500.0,0.00021917,6]
[346068110,1734690452424,-1670.65,0.00021917,6]
[346068111,1734690452444,-1261.37,0.00021917,6]
[346068112,1734690452468,-394.301777,0.00021917,2]
[346068113,1734690452491,-394.301777,0.00021917,2]
[346068114,1734690452513,-500.0,0.00021917,6]
[346068115,1734690452534,-500.0,0.00021917,6]
[346068116,1734690452556,-500.0,0.00021917,6]
[346068117,1734690452578,-1997.25,0.00021917,6]
[346068118,1734690452600,-2014.24,0.00021917,6]
[346068119,1734690452622,-500.0,0.00021917,6]
[346068120,1734690452645,-500.0,0.00021917,6]
[346068121,1734690452667,-689.8,0.00021917,6]
[346068122,1734690452688,-500.0,0.00021917,6]
[346068123,1734690452711,-500.0,0.00021917,6]
[346068124,1734690452732,-500.0,0.00021917,6]
[346068125,1734690452756,-1037.05,0.00021917,6]
[346068126,1734690452778,-1649.57,0.00021917,6]
[346068127,1734690452800,-500.0,0.00021917,6]
[346068128,1734690452823,-679.62,0.00021917,6]
[346068129,1734690452845,-2650.47,0.00021917,6]
[346068130,1734690452867,-151.0,0.00021917,2]
[346068131,1734690452888,-151.0,0.00021917,2]
[346068132,1734690452909,-500.0,0.00021917,6]
[346068133,1734690452932,-500.0,0.00021917,6]
[346068134,1734690452956,-5300.21,0.00021917,6]
[346068135,1734690452980,-500.0,0.00021917,6]
[346068136,1734690453002,-500.0,0.00021917,6]
[346068137,1734690453039,-2115.33,0.00021917,6]
[346068138,1734690453274,-1381.96,0.00021917,6]
[346068139,1734690453297,-3397.78,0.00021917,2]
[346068140,1734690453319,-500.0,0.00021917,6]
[346068141,1734690453344,-151.0,0.00021917,2]
[346068142,1734690453366,-500.0,0.00021917,6]
[346068143,1734690453388,-151.0,0.00021917,2]
[346068144,1734690453409,-500.0,0.00021917,6]
[346068145,1734690453432,-500.0,0.00021917,6]
[346068146,1734690453456,-152.556292,0.00021917,2]
[346068147,1734690453478,-500.0,0.00021917,6]
[346068148,1734690453501,-500.0,0.00021917,6]
[346068149,1734690453535,-847.09,0.00021917,6]
[346068150,1734690453564,-500.0,0.00021917,6]
[346068151,1734690453590,-515.0,0.00021917,6]
[346068152,1734690453618,-2250.01,0.00021917,6]
[346068153,1734690453642,-500.0,0.00021917,6]
[346068154,1734690453668,-847.5,0.00021917,6]
[346068155,1734690453694,-500.0,0.00021917,6]
[346068156,1734690453718,-500.79375214,0.00021917,6]
[346068157,1734690453743,-500.57043419,0.00021917,6]
[346068158,1734690453768,-500.0,0.00021917,6]
[346068159,1734690453793,-500.0,0.00021917,6]
[346068160,1734690453817,-150.06,0.00021917,2]
[346068161,1734690453840,-500.0,0.00021917,6]
[346068162,1734690453864,-150.06,0.00021917,6]
[346068163,1734690453889,-10912.6,0.00021917,6]
[346068164,1734690453913,-498.0,0.00021917,6]
[346068165,1734690453936,-150.06,0.00021917,6]
[346068166,1734690453959,-2765.59,0.00021917,6]
[346068167,1734690453982,-504.15223106,0.00021917,6]
[346068168,1734690454005,-6025.03,0.00021917,2]
[346068169,1734690454037,-190.344205,0.00021917,2]
[346068170,1734690454064,-501.68453153,0.00021917,6]
[346068171,1734690454087,-190.344205,0.00021917,2]
[346068172,1734690454110,-500.0,0.00021917,6]
[346068173,1734690454133,-504.14846097,0.00021917,6]
[346068174,1734690454155,-731.36,0.00021917,6]
[346068175,1734690454179,-500.0,0.00021917,6]
[346068176,1734690454202,-190.344205,0.00021917,2]
[346068177,1734690454224,-190.344205,0.00021917,2]
[346068178,1734690454247,-971.72,0.00021917,6]
[346068179,1734690454269,-5962.91,0.00021917,6]
[346068180,1734690454294,-6325.21,0.00021917,6]
[346068181,1734690454316,-501.02075685,0.00021917,6]
[346068182,1734690454338,-500.0,0.00021917,6]
[346068183,1734690454361,-2863.26,0.00021917,6]
[346068184,1734690454391,-500.0,0.00021917,6]
[346068185,1734690454419,-843.68,0.00021917,6]
[346068186,1734690454443,-500.0,0.00021917,6]
[346068187,1734690454466,-2220.57,0.00021917,6]
[346068188,1734690454489,-500.0,0.00021917,6]
[346068189,1734690454515,-500.0,0.00021917,6]
[346068190,1734690454540,-8918.67,0.00021917,6]
[346068191,1734690454563,-500.0,0.00021917,6]
[346068192,1734690454585,-1912.17,0.00021917,6]
[346068193,1734690454608,-1994.06,0.00021917,6]
[346068194,1734690454636,-500.0,0.00021917,6]
[346068195,1734690454665,-500.0,0.00021917,6]
[346068196,1734690454686,-912.39,0.00021917,6]
[346068197,1734690454708,-500.0,0.00021917,6]
[346068198,1734690454730,-500.0,0.00021917,6]
[346068199,1734690454753,-3430.86,0.00021917,6]
[346068200,1734690454775,-500.0,0.00021917,6]
[346068201,1734690454798,-500.0,0.00021917,6]
[346068202,1734690454821,-3028.23,0.00021917,6]
[346068203,1734690454846,-500.0,0.00021917,6]
[346068204,1734690454868,-500.0,0.00021917,6]
[346068205,1734690454890,-500.0,0.00021917,6]
[346068206,1734690454912,-500.0,0.00021917,6]
[346068207,1734690454935,-2103.95,0.00021917,6]
[346068208,1734690454959,-1169.14,0.00021917,6]
[346068209,1734690455160,-1008.34,0.00021917,6]
[346068210,1734690455182,-1273.86,0.00021917,6]
[346068211,1734690455203,-500.0,0.00021917,6]
[346068212,1734690455225,-500.0,0.00021917,6]
[346068213,1734690455247,-1795.29,0.00021917,6]
[346068214,1734690455268,-151.0,0.00021917,2]
[346068215,1734690455290,-153.466668,0.00021917,2]
[346068216,1734690455311,-500.0,0.00021917,6]
[346068217,1734690455334,-500.0,0.00021917,6]
[346068218,1734690455357,-1646.57,0.00021917,6]
[346068219,1734690455381,-500.0,0.00021917,6]
[346068220,1734690455403,-1657.48,0.00021917,6]
[346068221,1734690455424,-500.0,0.00021917,6]
[346068222,1734690455446,-501.33628007,0.00021917,6]
[346068223,1734690455468,-500.0,0.00021917,6]
[346068224,1734690455490,-500.0,0.00021917,6]
[346068225,1734690455518,-860.25,0.00021917,6]
[346068226,1734690455540,-768.39,0.00021917,6]
[346068227,1734690455581,-569.61,0.00021917,6]
[346068228,1734690455606,-24875.21,0.00021917,6]
[346068229,1734690455630,-159.129661,0.00021917,2]
[346068230,1734690455653,-159.129661,0.00021917,2]
[346068231,1734690455675,-500.0,0.00021917,6]